[Event "*** Titled Tuesday Blitz"]
[Site "Chess.com"]
[Date "2020.04.14"]
[Round "9"]
[White "MikeSailer"]
[Black "Eltarolo"]
[Result "0-1"]
[WhiteElo "2126"]
[BlackElo "2344"]
[TimeControl "180+1"]
[EndTime "11:43:11 PDT"]
[Termination "Eltarolo won on time"]

1. d4 {[%clk 0:03:00.6]} 1... Nf6 {[%clk 0:02:59.6]} 2. Bf4 {[%clk 0:02:59.5]}
2... g6 {[%clk 0:02:59.8]} 3. e3 {[%clk 0:02:58]} 3... Bg7 {[%clk 0:03:00.2]} 4.
Nf3 {[%clk 0:02:56.6]} 4... O-O {[%clk 0:03:00.3]} 5. Be2 {[%clk 0:02:56.5]}
5... d5 {[%clk 0:02:57.2]} 6. h3 {[%clk 0:02:56.1]} 6... c5 {[%clk 0:02:56.2]}
7. c3 {[%clk 0:02:56.2]} 7... Nc6 {[%clk 0:02:55.7]} 8. O-O {[%clk 0:02:55.5]}
8... b6 {[%clk 0:02:51.6]} 9. Nbd2 {[%clk 0:02:53.1]} 9... Bb7 {[%clk
0:02:50.8]} 10. a3 {[%clk 0:02:44.4]} 10... Rc8 {[%clk 0:02:45.5]} 11. b4 {[%clk
0:02:44.2]} 11... cxb4 {[%clk 0:02:36.9]} 12. cxb4 {[%clk 0:02:43]} 12... a5
{[%clk 0:02:36.6]} 13. b5 {[%clk 0:02:40.5]} 13... Nb8 {[%clk 0:02:31.6]} 14.
Ne5 {[%clk 0:02:27.7]} 14... Nbd7 {[%clk 0:02:28.1]} 15. Ndf3 {[%clk 0:02:27.2]}
15... Ne4 {[%clk 0:02:27.8]} 16. Nxd7 {[%clk 0:02:14.3]} 16... Qxd7 {[%clk
0:02:16.6]} 17. Qb3 {[%clk 0:01:55.3]} 17... Rc3 {[%clk 0:02:12.7]} 18. Qb2
{[%clk 0:01:54.8]} 18... Rfc8 {[%clk 0:02:07.8]} 19. Rfc1 {[%clk 0:01:50.8]}
19... e6 {[%clk 0:01:46]} 20. Rxc3 {[%clk 0:01:49.3]} 20... Rxc3 {[%clk
0:01:44.6]} 21. Rc1 {[%clk 0:01:31.6]} 21... Qc8 {[%clk 0:01:39]} 22. Rxc3
{[%clk 0:01:24.9]} 22... Qxc3 {[%clk 0:01:29.6]} 23. Qxc3 {[%clk 0:01:24.9]}
23... Nxc3 {[%clk 0:01:30.5]} 24. Bd3 {[%clk 0:01:21.1]} 24... Bf8 {[%clk
0:01:30.5]} 25. a4 {[%clk 0:01:14.6]} 25... Nxa4 {[%clk 0:01:28.5]} 26. Bc7
{[%clk 0:01:11.8]} 26... f6 {[%clk 0:01:23.2]} 27. Bc2 {[%clk 0:01:09.7]} 27...
Nc3 {[%clk 0:01:18.7]} 28. Bxb6 {[%clk 0:01:09.2]} 28... Bb4 {[%clk 0:01:13.4]}
29. Bd3 {[%clk 0:00:59.5]} 29... a4 {[%clk 0:01:13.2]} 30. Nd2 {[%clk
0:00:59.8]} 30... a3 {[%clk 0:01:10.1]} 31. Nb3 {[%clk 0:00:54.6]} 31... Bc8
{[%clk 0:01:03]} 32. Bc5 {[%clk 0:00:45.1]} 32... Bxc5 {[%clk 0:00:49.5]} 33.
dxc5 {[%clk 0:00:43.7]} 33... Na4 {[%clk 0:00:32.6]} 34. c6 {[%clk 0:00:29.6]}
34... Kf8 {[%clk 0:00:26.3]} 35. Bb1 {[%clk 0:00:24]} 35... Ke7 {[%clk 0:00:24]}
36. Kf1 {[%clk 0:00:24.4]} 36... Kd6 {[%clk 0:00:20.6]} 37. Ke2 {[%clk
0:00:24.6]} 37... Nc3+ {[%clk 0:00:19]} 38. Kd3 {[%clk 0:00:23.8]} 38... Nxb1
{[%clk 0:00:19.9]} 39. Kc2 {[%clk 0:00:22.6]} 39... a2 {[%clk 0:00:14.8]} 40.
Kb2 {[%clk 0:00:22.2]} 40... Kc7 {[%clk 0:00:13.8]} 41. Nc5 {[%clk 0:00:16]}
41... Nc3 {[%clk 0:00:10.5]} 42. Ka1 {[%clk 0:00:04.8]} 42... Nxb5 {[%clk
0:00:09.5]} 0-1

[Event "*** Titled Tuesday Blitz"]
[Site "Chess.com"]
[Date "2020.04.14"]
[Round "9"]
[White "arctic_t00"]
[Black "ARMQUEEN"]
[Result "0-1"]
[WhiteElo "2470"]
[BlackElo "2282"]
[TimeControl "180+1"]
[EndTime "11:43:14 PDT"]
[Termination "ARMQUEEN won by resignation"]

1. d4 {[%clk 0:03:00.9]} 1... Nf6 {[%clk 0:02:59.6]} 2. c4 {[%clk 0:03:00.4]}
2... c5 {[%clk 0:02:58.4]} 3. d5 {[%clk 0:02:59.1]} 3... e6 {[%clk 0:02:58.8]}
4. Nc3 {[%clk 0:02:58.4]} 4... exd5 {[%clk 0:02:59.1]} 5. cxd5 {[%clk
0:02:59.3]} 5... d6 {[%clk 0:02:59.5]} 6. Nf3 {[%clk 0:02:57.6]} 6... g6 {[%clk
0:02:58.2]} 7. Nd2 {[%clk 0:02:56.7]} 7... Bg7 {[%clk 0:02:56.1]} 8. e4 {[%clk
0:02:56.1]} 8... O-O {[%clk 0:02:56.1]} 9. Be2 {[%clk 0:02:54.8]} 9... a6 {[%clk
0:02:56.5]} 10. a4 {[%clk 0:02:54.2]} 10... Re8 {[%clk 0:02:54.1]} 11. O-O
{[%clk 0:02:53.3]} 11... Nbd7 {[%clk 0:02:52.5]} 12. f3 {[%clk 0:02:51.1]} 12...
b6 {[%clk 0:02:45.9]} 13. Nc4 {[%clk 0:02:50.6]} 13... Qe7 {[%clk 0:02:42.8]}
14. Bf4 {[%clk 0:02:45.6]} 14... Ne5 {[%clk 0:02:35.6]} 15. Nxb6 {[%clk
0:02:38]} 15... Rb8 {[%clk 0:02:34.5]} 16. Nxc8 {[%clk 0:02:35.8]} 16... Rexc8
{[%clk 0:02:34.6]} 17. Bxa6 {[%clk 0:02:32.5]} 17... Rc7 {[%clk 0:02:34.5]} 18.
Bb5 {[%clk 0:02:27.2]} 18... Nh5 {[%clk 0:02:33.3]} 19. Bd2 {[%clk 0:02:19.2]}
19... c4 {[%clk 0:02:32.1]} 20. b3 {[%clk 0:01:40]} 20... cxb3 {[%clk
0:02:16.4]} 21. Qxb3 {[%clk 0:01:39.8]} 21... Nd3 {[%clk 0:02:13.6]} 22. Ne2
{[%clk 0:00:45.2]} 22... Nc5 {[%clk 0:02:04]} 23. Qa2 {[%clk 0:00:35.1]} 23...
Bxa1 {[%clk 0:02:02.4]} 24. Rxa1 {[%clk 0:00:35.5]} 24... Ra7 {[%clk 0:01:59.1]}
25. Qc4 {[%clk 0:00:32.1]} 25... Qf6 {[%clk 0:01:56.9]} 26. Rf1 {[%clk
0:00:30.2]} 26... Rba8 {[%clk 0:01:43.3]} 27. Bc3 {[%clk 0:00:22.6]} 27... Qe7
{[%clk 0:01:32.6]} 28. Qd4 {[%clk 0:00:21.8]} 28... f6 {[%clk 0:01:32.7]} 29. g4
{[%clk 0:00:20.3]} 29... Ng7 {[%clk 0:01:32.4]} 30. Qxf6 {[%clk 0:00:18.6]}
30... Qxf6 {[%clk 0:01:32.5]} 31. Bxf6 {[%clk 0:00:19.5]} 31... Nxa4 {[%clk
0:01:32.9]} 32. Bc6 {[%clk 0:00:19.4]} 32... Rb8 {[%clk 0:01:24.3]} 33. Ra1
{[%clk 0:00:19.7]} 33... Rb4 {[%clk 0:01:23.3]} 34. Nf4 {[%clk 0:00:19.3]} 34...
Rf7 {[%clk 0:01:20.2]} 35. Bxg7 {[%clk 0:00:15.4]} 35... Rxf4 {[%clk 0:01:16.4]}
36. Rxa4 {[%clk 0:00:14]} 36... Rxa4 {[%clk 0:01:15.4]} 37. Bxa4 {[%clk
0:00:14.9]} 37... Kxg7 {[%clk 0:01:15.8]} 38. Kg2 {[%clk 0:00:15.4]} 38... Kf6
{[%clk 0:01:13.7]} 39. Kg3 {[%clk 0:00:14.3]} 39... Ke5 {[%clk 0:01:13.9]} 40.
h4 {[%clk 0:00:12.4]} 40... Rf8 {[%clk 0:01:13.2]} 41. g5 {[%clk 0:00:10.7]}
41... Kd4 {[%clk 0:01:11.5]} 42. Bd7 {[%clk 0:00:10.4]} 42... Ke3 {[%clk
0:01:11]} 43. Bg4 {[%clk 0:00:11]} 43... Rb8 {[%clk 0:01:09.6]} 44. h5 {[%clk
0:00:08.9]} 44... gxh5 {[%clk 0:01:06.3]} 45. Bxh5 {[%clk 0:00:09.1]} 45... Rb1
{[%clk 0:01:06.6]} 46. Bg4 {[%clk 0:00:08.7]} 46... Rg1+ {[%clk 0:01:06.2]} 47.
Kh3 {[%clk 0:00:07.4]} 47... Kf4 {[%clk 0:01:05.4]} 48. Bf5 {[%clk 0:00:04.4]}
48... Rxg5 {[%clk 0:01:03.5]} 49. Kh4 {[%clk 0:00:03.2]} 49... h6 {[%clk
0:01:03.7]} 50. Bg4 {[%clk 0:00:02.7]} 50... Re5 {[%clk 0:01:01.2]} 51. Kh3
{[%clk 0:00:02.5]} 51... h5 {[%clk 0:00:59]} 52. Be6 {[%clk 0:00:02.7]} 52...
Kxf3 {[%clk 0:00:58.3]} 53. Bf5 {[%clk 0:00:03.3]} 53... Kf4 {[%clk 0:00:57.7]}
54. Kh4 {[%clk 0:00:03.7]} 54... Rxe4 {[%clk 0:00:55.2]} 55. Bxe4 {[%clk
0:00:03.4]} 55... Kxe4 {[%clk 0:00:55.4]} 56. Kxh5 {[%clk 0:00:04.3]} 56... Kxd5
{[%clk 0:00:56.3]} 57. Kg4 {[%clk 0:00:05.2]} 57... Ke4 {[%clk 0:00:56.9]} 58.
Kg3 {[%clk 0:00:05.8]} 58... Ke3 {[%clk 0:00:57.1]} 59. Kg2 {[%clk 0:00:05.6]}
59... Ke2 {[%clk 0:00:57.5]} 60. Kg3 {[%clk 0:00:05.6]} 60... d5 {[%clk
0:00:56.1]} 61. Kf4 {[%clk 0:00:04.6]} 61... d4 {[%clk 0:00:56.4]} 0-1

[Event "*** Titled Tuesday Blitz"]
[Site "Chess.com"]
[Date "2020.04.14"]
[Round "9"]
[White "TST2014"]
[Black "MokshAD1603"]
[Result "1-0"]
[WhiteElo "2532"]
[BlackElo "2347"]
[TimeControl "180+1"]
[EndTime "11:43:15 PDT"]
[Termination "TST2014 won by resignation"]

1. d4 {[%clk 0:03:00.9]} 1... Nf6 {[%clk 0:02:58.8]} 2. c4 {[%clk 0:02:57]} 2...
g6 {[%clk 0:02:58.6]} 3. Nf3 {[%clk 0:02:55.5]} 3... Bg7 {[%clk 0:02:57.9]} 4.
Nc3 {[%clk 0:02:55.6]} 4... d5 {[%clk 0:02:57.5]} 5. Bg5 {[%clk 0:02:54.9]} 5...
Ne4 {[%clk 0:02:55.2]} 6. Bh4 {[%clk 0:02:54.5]} 6... Nxc3 {[%clk 0:02:54.4]} 7.
bxc3 {[%clk 0:02:55.4]} 7... dxc4 {[%clk 0:02:55.3]} 8. Qa4+ {[%clk 0:02:54.9]}
8... Qd7 {[%clk 0:02:55.6]} 9. Qxc4 {[%clk 0:02:54.6]} 9... b6 {[%clk
0:02:56.5]} 10. e3 {[%clk 0:02:54.5]} 10... Ba6 {[%clk 0:02:53.3]} 11. Qb3
{[%clk 0:02:54.4]} 11... Bxf1 {[%clk 0:02:53.5]} 12. Kxf1 {[%clk 0:02:55.3]}
12... O-O {[%clk 0:02:53.3]} 13. Ke2 {[%clk 0:02:54.7]} 13... Nc6 {[%clk
0:02:40.8]} 14. Rhd1 {[%clk 0:02:52.9]} 14... Na5 {[%clk 0:02:39.2]} 15. Qb4
{[%clk 0:02:51]} 15... Rfc8 {[%clk 0:02:38.3]} 16. Qxe7 {[%clk 0:02:38.7]} 16...
Qb5+ {[%clk 0:02:36.9]} 17. Ke1 {[%clk 0:02:37.1]} 17... Qb2 {[%clk 0:02:30.7]}
18. Qb4 {[%clk 0:02:31.9]} 18... Qxb4 {[%clk 0:02:26.6]} 19. cxb4 {[%clk
0:02:31.7]} 19... Nc6 {[%clk 0:02:27.5]} 20. b5 {[%clk 0:02:27]} 20... Nb4
{[%clk 0:02:24.9]} 21. Kd2 {[%clk 0:02:18.1]} 21... c5 {[%clk 0:02:15.8]} 22.
bxc6 {[%clk 0:02:10]} 22... Rxc6 {[%clk 0:02:15.4]} 23. Ne1 {[%clk 0:02:00.5]}
23... Rac8 {[%clk 0:02:10.5]} 24. a3 {[%clk 0:01:56.3]} 24... Nc2 {[%clk
0:02:07.1]} 25. Ra2 {[%clk 0:01:47.8]} 25... Nxe1 {[%clk 0:02:06]} 26. Rxe1
{[%clk 0:01:47]} 26... Bf8 {[%clk 0:02:05.6]} 27. Rb1 {[%clk 0:01:35.7]} 27...
Rc3 {[%clk 0:02:03.8]} 28. a4 {[%clk 0:01:34.3]} 28... R3c4 {[%clk 0:02:03.6]}
29. Rbb2 {[%clk 0:01:31.7]} 29... Bb4+ {[%clk 0:02:02.5]} 30. Kd1 {[%clk
0:01:25.4]} 30... a5 {[%clk 0:01:52.7]} 31. Rc2 {[%clk 0:01:24]} 31... Bc3
{[%clk 0:01:47.9]} 32. Ke2 {[%clk 0:01:23.4]} 32... Bb4 {[%clk 0:01:42.8]} 33.
Kd3 {[%clk 0:01:18.8]} 33... Rc3+ {[%clk 0:01:42.6]} 34. Rxc3 {[%clk 0:01:19.3]}
34... Rxc3+ {[%clk 0:01:43.5]} 35. Ke4 {[%clk 0:01:19.4]} 35... f5+ {[%clk
0:01:41.1]} 36. Kd5 {[%clk 0:01:19.1]} 36... Kf7 {[%clk 0:01:40.6]} 37. Bg3
{[%clk 0:01:16.6]} 37... Ke7 {[%clk 0:01:34.5]} 38. h4 {[%clk 0:01:13.7]} 38...
Kd7 {[%clk 0:01:33.5]} 39. h5 {[%clk 0:01:12.4]} 39... g5 {[%clk 0:01:31.3]} 40.
Ke5 {[%clk 0:01:09.4]} 40... Bd6+ {[%clk 0:01:26.2]} 41. Kxf5 {[%clk 0:01:07]}
41... Bxg3 {[%clk 0:01:27.1]} 42. fxg3 {[%clk 0:01:06.6]} 42... Rxe3 {[%clk
0:01:28]} 43. Kxg5 {[%clk 0:01:00.7]} 43... Rxg3+ {[%clk 0:01:26.4]} 44. Kh6
{[%clk 0:01:01]} 44... Kd6 {[%clk 0:01:16.8]} 45. Kxh7 {[%clk 0:00:59.7]} 45...
Kd5 {[%clk 0:01:17.1]} 46. Rd2 {[%clk 0:00:55]} 46... Ra3 {[%clk 0:01:15.5]} 47.
g4 {[%clk 0:00:55.2]} 47... Rg3 {[%clk 0:01:13.9]} 48. Rb2 {[%clk 0:00:49.6]}
48... Rxg4 {[%clk 0:01:09.6]} 49. Rxb6 {[%clk 0:00:48.9]} 49... Kxd4 {[%clk
0:01:03.4]} 50. Rb5 {[%clk 0:00:48.9]} 50... Ke4 {[%clk 0:00:59.2]} 51. Rxa5
{[%clk 0:00:48.7]} 51... Kf4 {[%clk 0:00:59.1]} 52. Rb5 {[%clk 0:00:47.6]} 52...
Kg3 {[%clk 0:00:58.7]} 53. h6 {[%clk 0:00:45.9]} 53... Rxa4 {[%clk 0:00:57]} 54.
Kg6 {[%clk 0:00:40]} 54... Ra6+ {[%clk 0:00:55.8]} 55. Kg5 {[%clk 0:00:40.2]}
55... Ra7 {[%clk 0:00:53.9]} 56. Rb3+ {[%clk 0:00:39.9]} 56... Kg2 {[%clk
0:00:53.5]} 57. Re3 {[%clk 0:00:39.6]} 57... Kf2 {[%clk 0:00:52.6]} 58. Re6
{[%clk 0:00:39.3]} 58... Kg3 {[%clk 0:00:52.6]} 59. Kg6 {[%clk 0:00:39.8]} 59...
Kg4 {[%clk 0:00:50.2]} 60. h7 {[%clk 0:00:39.5]} 60... Rb7 {[%clk 0:00:49.3]}
61. h8=Q {[%clk 0:00:37]} 1-0

[Event "*** Titled Tuesday Blitz"]
[Site "Chess.com"]
[Date "2020.04.14"]
[Round "9"]
[White "Onwgs"]
[Black "AliKa2810"]
[Result "1-0"]
[WhiteElo "2432"]
[BlackElo "2589"]
[TimeControl "180+1"]
[EndTime "11:43:16 PDT"]
[Termination "Onwgs won by resignation"]

1. e4 {[%clk 0:03:00.5]} 1... e6 {[%clk 0:02:59.9]} 2. d4 {[%clk 0:03:00.5]}
2... d5 {[%clk 0:03:00.8]} 3. Nd2 {[%clk 0:03:01]} 3... c5 {[%clk 0:03:00.4]} 4.
exd5 {[%clk 0:03:01.4]} 4... exd5 {[%clk 0:03:01]} 5. Ngf3 {[%clk 0:03:01.1]}
5... Nc6 {[%clk 0:03:01.7]} 6. Bb5 {[%clk 0:03:01.3]} 6... Qe7+ {[%clk
0:03:02.4]} 7. Qe2 {[%clk 0:03:00.3]} 7... Qxe2+ {[%clk 0:03:01.9]} 8. Bxe2
{[%clk 0:03:01.2]} 8... Nf6 {[%clk 0:03:00.4]} 9. O-O {[%clk 0:03:00.3]} 9...
Bf5 {[%clk 0:02:56.8]} 10. Re1 {[%clk 0:02:54.2]} 10... O-O-O {[%clk 0:02:55.8]}
11. dxc5 {[%clk 0:02:54.2]} 11... Bxc5 {[%clk 0:02:53]} 12. Nb3 {[%clk 0:02:54]}
12... Bb6 {[%clk 0:02:51.1]} 13. c3 {[%clk 0:02:53.8]} 13... Rhe8 {[%clk
0:02:47.4]} 14. Bg5 {[%clk 0:02:52.5]} 14... Ne4 {[%clk 0:02:41.3]} 15. Bh4
{[%clk 0:02:42.8]} 15... f6 {[%clk 0:02:36.5]} 16. Nfd4 {[%clk 0:02:42.7]} 16...
Bd7 {[%clk 0:02:29.2]} 17. f3 {[%clk 0:02:39.1]} 17... g5 {[%clk 0:02:04.5]} 18.
fxe4 {[%clk 0:02:33.6]} 18... gxh4 {[%clk 0:02:05.4]} 19. exd5 {[%clk
0:02:33.8]} 19... Nxd4 {[%clk 0:02:05.3]} 20. Nxd4 {[%clk 0:02:34]} 20... h3
{[%clk 0:02:04.6]} 21. Bf3 {[%clk 0:02:29.5]} 21... hxg2 {[%clk 0:02:04.3]} 22.
Kxg2 {[%clk 0:02:27.7]} 22... Rg8+ {[%clk 0:02:03.8]} 23. Kf2 {[%clk 0:02:25.7]}
23... Rg5 {[%clk 0:02:00.3]} 24. Rg1 {[%clk 0:02:19.3]} 24... Rf5 {[%clk
0:01:52.7]} 25. Rg7 {[%clk 0:02:12.8]} 25... Rf4 {[%clk 0:01:49.7]} 26. Re1
{[%clk 0:02:09.2]} 26... f5 {[%clk 0:01:36.7]} 27. Rxh7 {[%clk 0:02:02.7]} 27...
Bb5 {[%clk 0:01:04.3]} 28. Kg3 {[%clk 0:01:50.6]} 28... Rxd4 {[%clk 0:00:49.1]}
29. cxd4 {[%clk 0:01:50.5]} 29... Bxd4 {[%clk 0:00:47.9]} 30. d6 {[%clk
0:01:47.6]} 30... Rxd6 {[%clk 0:00:37.7]} 31. Bxb7+ {[%clk 0:01:46.1]} 31... Kb8
{[%clk 0:00:36.9]} 32. Bf3 {[%clk 0:01:40.2]} 32... Bd7 {[%clk 0:00:33.5]} 33.
Kf4 {[%clk 0:01:32.8]} 33... Kc7 {[%clk 0:00:30.9]} 34. Rc1+ {[%clk 0:01:28.9]}
34... Kb6 {[%clk 0:00:30.8]} 35. Rd1 {[%clk 0:01:22.5]} 35... a5 {[%clk
0:00:24.6]} 36. h4 {[%clk 0:01:19.1]} 36... Kc5 {[%clk 0:00:23.3]} 37. Rc1+
{[%clk 0:01:15.7]} 37... Kb4 {[%clk 0:00:22.5]} 38. Re7 {[%clk 0:01:13.2]} 38...
Bxb2 {[%clk 0:00:20.4]} 39. Rd1 {[%clk 0:01:09.1]} 39... Rxd1 {[%clk 0:00:15.8]}
40. Bxd1 {[%clk 0:01:10]} 40... Bc1+ {[%clk 0:00:16.5]} 41. Kg3 {[%clk 0:00:56]}
41... Bc6 {[%clk 0:00:15.9]} 42. h5 {[%clk 0:00:49.9]} 42... f4+ {[%clk
0:00:16.8]} 43. Kf2 {[%clk 0:00:46.2]} 43... Be3+ {[%clk 0:00:16]} 44. Ke1
{[%clk 0:00:38.7]} 44... Kc3 {[%clk 0:00:13.7]} 45. h6 {[%clk 0:00:38.3]} 45...
Bd2+ {[%clk 0:00:13.4]} 46. Kf2 {[%clk 0:00:37.1]} 46... Be3+ {[%clk 0:00:12.3]}
47. Rxe3+ {[%clk 0:00:32.9]} 47... fxe3+ {[%clk 0:00:12.4]} 48. Kxe3 {[%clk
0:00:33.8]} 1-0

[Event "*** Titled Tuesday Blitz"]
[Site "Chess.com"]
[Date "2020.04.14"]
[Round "9"]
[White "VALPARAISO37"]
[Black "Alex_Molchanov"]
[Result "0-1"]
[WhiteElo "2369"]
[BlackElo "2533"]
[TimeControl "180+1"]
[EndTime "11:43:16 PDT"]
[Termination "Alex_Molchanov won by checkmate"]

1. d4 {[%clk 0:03:00.9]} 1... Nf6 {[%clk 0:02:57.2]} 2. c4 {[%clk 0:03:00.2]}
2... e6 {[%clk 0:02:57.6]} 3. Nc3 {[%clk 0:02:59.9]} 3... Bb4 {[%clk 0:02:58.1]}
4. a3 {[%clk 0:02:59.3]} 4... Bxc3+ {[%clk 0:02:57.7]} 5. bxc3 {[%clk
0:02:59.8]} 5... b6 {[%clk 0:02:58.3]} 6. e3 {[%clk 0:03:00]} 6... Nc6 {[%clk
0:02:57.9]} 7. Bd3 {[%clk 0:02:59.4]} 7... Ba6 {[%clk 0:02:58]} 8. e4 {[%clk
0:02:58.8]} 8... Na5 {[%clk 0:02:56.5]} 9. e5 {[%clk 0:02:59.2]} 9... Ng8 {[%clk
0:02:55.8]} 10. Qg4 {[%clk 0:03:00]} 10... Kf8 {[%clk 0:02:19.2]} 11. Bg5 {[%clk
0:02:58.7]} 11... f6 {[%clk 0:02:11.6]} 12. exf6 {[%clk 0:02:58]} 12... Nxf6
{[%clk 0:02:11.5]} 13. Qe2 {[%clk 0:02:31.8]} 13... h6 {[%clk 0:01:51.5]} 14.
Bh4 {[%clk 0:02:29]} 14... Qe8 {[%clk 0:01:36.5]} 15. Nf3 {[%clk 0:02:25.9]}
15... d6 {[%clk 0:01:12.7]} 16. O-O {[%clk 0:02:20]} 16... Qd7 {[%clk
0:01:09.2]} 17. Bg3 {[%clk 0:02:09.6]} 17... Kf7 {[%clk 0:01:07.2]} 18. Nh4
{[%clk 0:02:09.1]} 18... Rhe8 {[%clk 0:00:58.8]} 19. Ng6 {[%clk 0:01:38.7]}
19... Qa4 {[%clk 0:00:49.3]} 20. c5 {[%clk 0:01:33.6]} 20... Bxd3 {[%clk
0:00:39.1]} 21. Qxd3 {[%clk 0:01:33.6]} 21... Qc4 {[%clk 0:00:39]} 22. Qc2
{[%clk 0:01:27.1]} 22... bxc5 {[%clk 0:00:38.6]} 23. dxc5 {[%clk 0:01:24.6]}
23... Qxc5 {[%clk 0:00:37]} 24. Nf4 {[%clk 0:01:20.2]} 24... Rab8 {[%clk
0:00:19.5]} 25. Qg6+ {[%clk 0:01:17.9]} 25... Kg8 {[%clk 0:00:19.8]} 26. Rab1
{[%clk 0:01:04.1]} 26... Qf5 {[%clk 0:00:20.1]} 27. Rxb8 {[%clk 0:01:00.6]}
27... Rxb8 {[%clk 0:00:19.3]} 28. Qxf5 {[%clk 0:00:53.8]} 28... exf5 {[%clk
0:00:20.2]} 29. h3 {[%clk 0:00:52.7]} 29... Rb3 {[%clk 0:00:19.6]} 30. Ne2
{[%clk 0:00:46.4]} 30... Rxa3 {[%clk 0:00:18.2]} 31. Rb1 {[%clk 0:00:46.2]}
31... Rb3 {[%clk 0:00:18.5]} 32. Ra1 {[%clk 0:00:46.4]} 32... Nc6 {[%clk
0:00:18.8]} 33. Ra6 {[%clk 0:00:45.7]} 33... Rb6 {[%clk 0:00:19.3]} 34. Ra4
{[%clk 0:00:45.6]} 34... Ne4 {[%clk 0:00:19.6]} 35. Bf4 {[%clk 0:00:45.1]} 35...
g5 {[%clk 0:00:19.3]} 36. Be3 {[%clk 0:00:45.4]} 36... Rb2 {[%clk 0:00:19.1]}
37. Ra6 {[%clk 0:00:38.9]} 37... Nb8 {[%clk 0:00:15.8]} 38. Rxa7 {[%clk
0:00:33.8]} 38... f4 {[%clk 0:00:14.4]} 39. Bd4 {[%clk 0:00:30.1]} 39... c5
{[%clk 0:00:12.2]} 40. c4 {[%clk 0:00:20.4]} 40... Rxe2 {[%clk 0:00:09.5]} 41.
Bg7 {[%clk 0:00:19.6]} 41... Nc6 {[%clk 0:00:09.3]} 42. Rc7 {[%clk 0:00:18.7]}
42... Re1+ {[%clk 0:00:08.7]} 43. Kh2 {[%clk 0:00:18.2]} 43... Nxf2 {[%clk
0:00:09.6]} 44. g3 {[%clk 0:00:18.9]} 44... fxg3+ {[%clk 0:00:08.5]} 45. Kxg3
{[%clk 0:00:18.3]} 45... Re7 {[%clk 0:00:08.4]} 46. Rxc6 {[%clk 0:00:17.5]}
46... Ne4+ {[%clk 0:00:08.4]} 47. Kf3 {[%clk 0:00:16.3]} 47... Kxg7 {[%clk
0:00:09.3]} 48. Kg4 {[%clk 0:00:15.4]} 48... Nf6+ {[%clk 0:00:08.7]} 49. Kf5
{[%clk 0:00:15.5]} 49... Re5# {[%clk 0:00:09]} 0-1

[Event "*** Titled Tuesday Blitz"]
[Site "Chess.com"]
[Date "2020.04.14"]
[Round "9"]
[White "LileKoridze"]
[Black "JacekDubiel"]
[Result "1/2-1/2"]
[WhiteElo "2295"]
[BlackElo "2427"]
[TimeControl "180+1"]
[EndTime "11:43:16 PDT"]
[Termination "Game drawn by repetition"]

1. d4 {[%clk 0:03:00.9]} 1... Nf6 {[%clk 0:02:59.8]} 2. c4 {[%clk 0:03:00.6]}
2... e6 {[%clk 0:03:00.3]} 3. g3 {[%clk 0:03:00.2]} 3... d5 {[%clk 0:02:58.9]}
4. Bg2 {[%clk 0:03:00.2]} 4... dxc4 {[%clk 0:02:58.7]} 5. Nf3 {[%clk 0:02:59.1]}
5... c6 {[%clk 0:02:58.6]} 6. O-O {[%clk 0:02:58.1]} 6... b5 {[%clk 0:02:58.8]}
7. a4 {[%clk 0:02:57.2]} 7... Bb7 {[%clk 0:02:57.5]} 8. Ne5 {[%clk 0:02:56.6]}
8... a6 {[%clk 0:02:53]} 9. axb5 {[%clk 0:02:17.4]} 9... axb5 {[%clk 0:02:52]}
10. Rxa8 {[%clk 0:02:17.5]} 10... Bxa8 {[%clk 0:02:52.9]} 11. Nc3 {[%clk
0:02:17.2]} 11... Be7 {[%clk 0:02:47.1]} 12. Nxb5 {[%clk 0:02:16.9]} 12... cxb5
{[%clk 0:02:44.5]} 13. Bxa8 {[%clk 0:02:16.9]} 13... Nd5 {[%clk 0:02:35.4]} 14.
Nc6 {[%clk 0:02:07.6]} 14... Qc7 {[%clk 0:02:21.2]} 15. Nxb8 {[%clk 0:02:03.4]}
15... Qxb8 {[%clk 0:02:20.7]} 16. Bc6+ {[%clk 0:02:03.6]} 16... Kf8 {[%clk
0:02:21.1]} 17. b3 {[%clk 0:02:03.1]} 17... Qb6 {[%clk 0:02:12.9]} 18. bxc4
{[%clk 0:02:01.8]} 18... Qxc6 {[%clk 0:02:08]} 19. cxd5 {[%clk 0:02:01.6]} 19...
Qxd5 {[%clk 0:02:08.9]} 20. Qc2 {[%clk 0:01:59]} 20... h5 {[%clk 0:02:03.6]} 21.
Ba3 {[%clk 0:01:48.8]} 21... Qd7 {[%clk 0:01:13.5]} 22. Bc5 {[%clk 0:01:39.2]}
22... g6 {[%clk 0:01:00.3]} 23. Rb1 {[%clk 0:01:32.7]} 23... Kg7 {[%clk
0:00:58.6]} 24. Bxe7 {[%clk 0:01:32.5]} 24... Qxe7 {[%clk 0:00:59.5]} 25. Rxb5
{[%clk 0:01:32.7]} 25... Rd8 {[%clk 0:00:58.3]} 26. Qc5 {[%clk 0:01:15.1]} 26...
Qd7 {[%clk 0:00:49.7]} 27. e3 {[%clk 0:01:09.7]} 27... Rc8 {[%clk 0:00:49.6]}
28. Qb4 {[%clk 0:01:01.2]} 28... Rc1+ {[%clk 0:00:49.4]} 29. Kg2 {[%clk
0:01:01.4]} 29... Qc6+ {[%clk 0:00:49.6]} 30. d5 {[%clk 0:00:58]} 30... exd5
{[%clk 0:00:44.6]} 31. Qd4+ {[%clk 0:00:57.5]} 31... Qf6 {[%clk 0:00:31.6]} 32.
Rxd5 {[%clk 0:00:39.8]} 32... Rc2 {[%clk 0:00:28.3]} 33. e4 {[%clk 0:00:35]}
33... Qxd4 {[%clk 0:00:27.5]} 34. Rxd4 {[%clk 0:00:35.3]} 34... Kf6 {[%clk
0:00:22.9]} 35. Rd5 {[%clk 0:00:35.4]} 35... Ke6 {[%clk 0:00:22.5]} 36. Kf3
{[%clk 0:00:34.6]} 36... Rc3+ {[%clk 0:00:22.6]} 37. Kf4 {[%clk 0:00:31.8]}
37... Rc2 {[%clk 0:00:22.3]} 38. Ke3 {[%clk 0:00:30]} 38... Rc1 {[%clk
0:00:20.4]} 39. h4 {[%clk 0:00:28.3]} 39... Re1+ {[%clk 0:00:20.2]} 40. Kf4
{[%clk 0:00:27.2]} 40... Rf1 {[%clk 0:00:20.5]} 41. Rd2 {[%clk 0:00:26.8]} 41...
Ra1 {[%clk 0:00:20.1]} 42. Rb2 {[%clk 0:00:26.9]} 42... Ra5 {[%clk 0:00:18.8]}
43. Rb6+ {[%clk 0:00:26.8]} 43... Ke7 {[%clk 0:00:18.9]} 44. e5 {[%clk
0:00:23.6]} 44... Rc5 {[%clk 0:00:18.9]} 45. Ke4 {[%clk 0:00:22.9]} 45... Ra5
{[%clk 0:00:18.8]} 46. Rd6 {[%clk 0:00:15.4]} 46... Ra4+ {[%clk 0:00:18.9]} 47.
Rd4 {[%clk 0:00:15.2]} 47... Ra2 {[%clk 0:00:19.1]} 48. f4 {[%clk 0:00:13.8]}
48... Ra3 {[%clk 0:00:19.4]} 49. Rd3 {[%clk 0:00:13]} 49... Ra4+ {[%clk
0:00:19.7]} 50. Rd4 {[%clk 0:00:13.3]} 50... Ra3 {[%clk 0:00:20.1]} 51. Rd3
{[%clk 0:00:13.3]} 51... Ra4+ {[%clk 0:00:20.7]} 52. Rd4 {[%clk 0:00:13.4]}
52... Ra3 {[%clk 0:00:20.7]} 1/2-1/2